fUSD/lending_fUSD_20250416
["ID","MTS","AMOUNT","RATE_DAILY","PERIOD"]
[358184076,1744822247325,-200.0,0.00031,2]
[358184078,1744822247334,-200.0,0.00031,2]
[358184080,1744822247343,-597.0,0.000315,120]
[358184082,1744822247355,-529.1,0.00031506,2]
[358184084,1744822247365,-2000.0,0.00032,4]
[358184086,1744822247375,-489.14419438,0.00032,120]
[358184088,1744822247385,-599.62,0.00032,2]
[358184090,1744822247395,-684.05,0.000323,2]
[358184092,1744822247404,-425.01,0.00032315,30]
[358184094,1744822247413,-684.06,0.00032333,2]
[358184096,1744822247423,-684.05,0.00032367,2]
[358184098,1744822247432,-684.06,0.000324,2]
[358184100,1744822247442,-4647.70883252,0.000328,2]
[358184102,1744822247451,-529.1,0.00032876,2]
[358184103,1744822247462,-331.05,0.00032877,2]
[358184105,1744822247471,-300.0,0.00032877,30]
[358184107,1744822247481,-168.55,0.00032877,2]
[358184109,1744822247490,-1500.0,0.00032877,120]
[358184111,1744822247499,-150.0,0.00032877,5]
[358184113,1744822247509,-4551.63295127,0.00033,2]
[358184115,1744822247518,-25096.0331779,0.00033,2]
[358184117,1744822247527,-200.0,0.000331,2]
[358184119,1744822247536,-216.29586429,0.000331,2]
[358184121,1744822247545,-200.0,0.00033151,2]
[358184123,1744822247555,-351.8,0.00033177,2]
[358184125,1744822247564,-6269.79958394,0.000332,2]
[358184127,1744822247574,-1100.0,0.000333,2]
[358184129,1744822247583,-250.0,0.00033425,5]
[358184131,1744822247592,-1167.4582921,0.000335,2]
[358184133,1744822247602,-327.66,0.000335,31]
[358184135,1744822247611,-327.66,0.000335,31]
[358184137,1744822247620,-327.66,0.000335,31]
[358184138,1744822247630,-327.66,0.000335,31]
[358184140,1744822247639,-327.66,0.000335,31]
[358184142,1744822247648,-327.66,0.000335,31]
[358184144,1744822247657,-327.66,0.000335,31]
[358184146,1744822247667,-327.66,0.000335,31]
[358184148,1744822247676,-327.66,0.000335,31]
[358184150,1744822247686,-327.66,0.000335,31]
[358184152,1744822247695,-327.66,0.000335,31]
[358184154,1744822247705,-327.66,0.000335,31]
[358184156,1744822247714,-350.0,0.00033973,5]
[358184158,1744822247724,-3998.26412778,0.00034,2]
[358184160,1744822247733,-216.0,0.000341,2]
[358184162,1744822247742,-529.1,0.00034246,2]
[358184164,1744822247752,-450.0,0.00034521,5]
[358184165,1744822247761,-168.16264118,0.00035,120]
[358184167,1744822247771,-6021.75124483,0.00035,2]
[358184169,1744822247780,-227.36880035,0.00035,2]
[358184171,1744822247790,-599.62,0.00035,2]
[358184173,1744822247799,-300.0,0.00035068,5]
[358184175,1744822247809,-200.0,0.000351,2]
[358184177,1744822247818,-351.8,0.00035441,2]
[358184179,1744822247827,-529.1,0.00035616,2]
[358184181,1744822247836,-2000.0,0.00035616,120]
[358184183,1744822247846,-2000.0,0.00035616,120]
[358184185,1744822247859,-2000.0,0.00035616,120]
[358184187,1744822247869,-2000.0,0.00035616,120]
[358184189,1744822247878,-2000.0,0.00035616,120]
[358184191,1744822247888,-2000.0,0.00035616,120]
[358184193,1744822247899,-2000.0,0.00035616,120]
[358184195,1744822247908,-2000.0,0.00035616,120]
[358184197,1744822247918,-2000.0,0.00035616,120]
[358184199,1744822247929,-2000.0,0.00035616,120]
[358184201,1744822247938,-2000.0,0.00035616,120]
[358184203,1744822247948,-2000.0,0.00035616,120]
[358184205,1744822247958,-1509.639094,0.00035616,120]
[358184207,1744822247967,-2000.0,0.00036,4]
[358184208,1744822247980,-300.0,0.00036,2]
[358184210,1744822247989,-960.373,0.0003692,46]
[358184212,1744822247998,-529.1,0.00036986,2]
[358184214,1744822248008,-300.0,0.00036986,30]
[358184216,1744822248017,-153068.77622804,0.00037,2]
[358184218,1744822248028,-4853.45285712,0.000372,120]
[358184220,1744822248037,-4853.45285711,0.000372,120]
[358184222,1744822248047,-4853.45285711,0.000372,120]
[358184224,1744822248056,-4853.45285711,0.000372,120]
[358184226,1744822248066,-4853.45285711,0.000372,120]
[358184228,1744822248076,-425.01,0.00037205,30]
[358184229,1744822248085,-4196.08916882,0.0003759,2]
[358184231,1744822248095,-151.0,0.0003759,7]
[358184233,1744822248105,-351.8,0.00037704,2]
[358184235,1744822248114,-168.05976622,0.000378,2]
[358184237,1744822248124,-190.88293,0.00037888,7]
[358184240,1744822248135,-207.4,0.00037973,2]
[358184242,1744822248145,-185.12596853,0.00037999,120]
[358184244,1744822248156,-570.80168865,0.00038,120]
[358184245,1744822248166,-866.94621034,0.00038,120]
[358184247,1744822248176,-599.62,0.00038,2]
[358184249,1744822248186,-190.88293,0.00038088,7]
[358184252,1744822248196,-190.88293,0.00038288,7]
[358184253,1744822248206,-5630.3,0.00038356,5]
[358184255,1744822248216,-529.1,0.00038356,2]
[358184257,1744822248226,-644.32964638,0.000384,33]
[358184258,1744822248236,-190.88293,0.00038488,7]
[358184260,1744822248246,-190.88293,0.00038688,7]
[358184262,1744822248256,-327.66,0.000388,31]
[358184263,1744822248265,-327.66,0.000388,31]
[358184266,1744822248275,-327.66,0.000388,31]
[358184267,1744822248285,-327.66,0.000388,31]
[358184269,1744822248295,-327.66,0.000388,31]
[358184271,1744822248306,-327.66,0.000388,31]
[358184272,1744822248315,-327.66,0.000388,31]
[358184273,1744822248325,-327.66,0.000388,31]
[358184274,1744822248335,-327.66,0.000388,31]
[358184275,1744822248345,-327.66,0.000388,31]
[358184276,1744822248356,-327.66,0.000388,31]
[358184277,1744822248366,-327.66,0.000388,31]
[358184278,1744822248376,-327.66,0.000388,31]
[358184279,1744822248387,-327.66,0.000388,31]
[358184280,1744822248397,-327.66,0.000388,31]
[358184281,1744822248407,-327.66,0.000388,31]
[358184282,1744822248416,-327.66,0.000388,31]
[358184283,1744822248426,-327.66,0.000388,31]
[358184284,1744822248436,-327.66,0.000388,31]
[358184285,1744822248446,-327.66,0.000388,31]
[358184286,1744822248456,-327.66,0.000388,31]
[358184287,1744822248467,-327.66,0.000388,31]
[358184288,1744822248476,-327.66,0.000388,31]
[358184289,1744822248486,-327.66,0.000388,31]
[358184290,1744822248496,-190.88293,0.00038888,7]
[358184291,1744822248506,-377.93575176,0.00039,120]
[358184292,1744822248515,-162.65679689,0.00039,120]
[358184293,1744822248526,-2892.6703297,0.00039,120]
[358184294,1744822248536,-190.88293,0.00039088,7]
[358184295,1744822248546,-7983.85,0.000392,2]
[358184296,1744822248556,-1659.26,0.000392,2]
[358184297,1744822248566,-995.56,0.000392,2]
[358184298,1744822248576,-190.88293,0.00039288,7]
[358184299,1744822248586,-215.0738,0.00039342,2]
[358184300,1744822248596,-190.88293,0.00039488,7]
[358184301,1744822248606,-208.0,0.0003959,53]
[358184302,1744822248616,-209.63645054,0.0003962,2]
[358184303,1744822248626,-1106.72980507,0.0003965,120]
[358184304,1744822248636,-190.88293,0.00039688,7]
[358184305,1744822248647,-529.1,0.00039726,2]
[358184306,1744822248657,-150.0,0.00039799,2]
[358184307,1744822248667,-170638.74164466,0.000398,2]
[358184308,1744822248681,-190.88293,0.00039888,7]
[358184309,1744822248691,-351.8,0.00039968,2]
[358184310,1744822248702,-2000.0,0.0004,4]
[358184311,1744822248712,-590.08551818,0.0004,2]
[358184312,1744822248722,-1246.16626029,0.0004,120]
[358184313,1744822248733,-206.09103222,0.0004,3]
[358184314,1744822248742,-16618.47263892,0.0004,2]
[358184315,1744822248752,-542.89226277,0.0004,30]
[358184316,1744822248762,-1500.72451725,0.0004,2]
[358184317,1744822248772,-379.12781793,0.0004,2]
[358184318,1744822248781,-5070.3874402,0.0004,2]
[358184319,1744822248791,-212.48855914,0.0004,2]
[358184320,1744822248801,-3105.2777097,0.0004,30]
[358184321,1744822248811,-152.0,0.0004,2]
[358184322,1744822248821,-570.80168865,0.0004,120]
[358184323,1744822248831,-866.94621034,0.0004,120]
[358184324,1744822248841,-14595.68606144,0.0004,30]
[358184325,1744822248853,-2000.0,0.0004,120]
[358184326,1744822248866,-2000.0,0.0004,120]
[358184327,1744822248875,-500.0,0.0004,120]
[358184328,1744822248886,-500.0,0.0004,120]
[358184329,1744822248896,-500.0,0.0004,120]
[358184330,1744822248906,-500.0,0.0004,120]
[358184331,1744822248915,-190.88293,0.00040088,7]
[358184332,1744822248926,-500.0,0.00040274,120]
[358184333,1744822248937,-285.136,0.00040274,120]
[358184334,1744822248948,-190.88293,0.00040288,7]
[358184335,1744822248958,-190.88293,0.00040488,7]
[358184336,1744822248971,-500.0,0.00040548,120]
[358184337,1744822248981,-500.0,0.00040548,120]
[358184338,1744822248991,-500.0,0.00040548,120]
[358184339,1744822249001,-190.88293,0.00040688,7]
[358184340,1744822249011,-223.0315306,0.00040711,2]
[358184341,1744822249022,-172.56911978,0.000408,120]
[358184342,1744822249033,-67833.82197512,0.0004083,2]
[358184343,1744822249045,-1717.9464,0.00040888,30]
[358184344,1744822249055,-200.0,0.00041,2]
[358184345,1744822249065,-21807.60012576,0.00041,5]
[358184346,1744822249076,-599.64,0.00041,2]
[358184347,1744822249086,-333.0,0.0004107,120]
[358184348,1744822249096,-1183.0,0.0004107,120]
[358184349,1744822249106,-333.0,0.0004108,120]
[358184350,1744822249116,-1183.0,0.0004108,120]
[358184351,1744822249127,-1717.9464,0.00041088,30]
[358184352,1744822249139,-190.88293,0.00041088,7]
[358184353,1744822249150,-333.0,0.0004109,120]
[358184354,1744822249159,-1183.0,0.0004109,120]
[358184355,1744822249170,-529.1,0.00041095,120]
[358184356,1744822249180,-300.0,0.00041096,30]
[358184357,1744822249190,-500.0,0.00041096,120]
[358184358,1744822249202,-500.0,0.00041096,120]
[358184359,1744822249213,-1717.9464,0.00041288,30]
[358184360,1744822249223,-190.88293,0.00041288,7]
[358184361,1744822249234,-1717.9464,0.00041488,30]
[358184362,1744822249244,-190.88293,0.00041488,7]
[358184363,1744822249254,-1717.9464,0.00041688,30]
[358184364,1744822249266,-190.88293,0.00041688,7]
[358184365,1744822249277,-1717.9464,0.00041888,30]
[358184366,1744822249486,-190.88293,0.00041888,7]
[358184367,1744822249499,-754.47613698,0.0004199,120]
[358184368,1744822249509,-239.86987309,0.00042,2]
[358184369,1744822249518,-360.47537003,0.00042,120]
[358184370,1744822249528,-1166.55514493,0.00042,120]
[358184371,1744822249538,-1358.73634745,0.00042,60]
[358184372,1744822249547,-6076.4218801,0.00042,2]
[358184373,1744822249557,-2000.0,0.00042,120]
[358184374,1744822249567,-2000.0,0.00042,120]
[358184375,1744822249576,-1000.0,0.00042,2]
[358184376,1744822249585,-1335.47954337,0.0004201,2]
[358184377,1744822249595,-231.28369723,0.0004208,2]
[358184378,1744822249604,-1717.9464,0.00042088,30]
[358184379,1744822249614,-190.88293,0.00042088,7]
[358184380,1744822249623,-151.0,0.00042088,14]
[358184381,1744822249633,-425.01,0.00042096,30]
[358184382,1744822249643,-351.8,0.00042232,2]
[358184383,1744822249652,-1717.9464,0.00042288,30]
[358184384,1744822249661,-190.88293,0.00042288,7]
[358184385,1744822249671,-529.1,0.00042465,120]
[358184386,1744822249680,-1717.9464,0.00042488,30]
[358184387,1744822249690,-190.88293,0.00042488,7]
[358184388,1744822249699,-3066.599998,0.000425,90]
[358184389,1744822249709,-209839.4055586,0.0004265,2]
[358184390,1744822249721,-6794.21740159,0.0004265,2]
[358184391,1744822249730,-1717.9464,0.00042688,30]
[358184392,1744822249739,-190.88293,0.00042688,7]
[358184393,1744822249749,-198.75360993,0.0004288,2]
[358184394,1744822249758,-1717.9464,0.00042888,30]
[358184395,1744822249767,-190.88293,0.00042888,7]
[358184396,1744822249777,-239.0,0.00043,30]
[358184397,1744822249786,-1141.60337731,0.00043,120]
[358184398,1744822249795,-1733.89242068,0.00043,120]
[358184399,1744822249804,-1717.9464,0.00043088,30]
[358184400,1744822249814,-190.88293,0.00043088,7]
[358184401,1744822249823,-25253.17439464,0.0004321,2]
[358184402,1744822249834,-1717.9464,0.00043288,30]
[358184403,1744822249843,-190.88293,0.00043288,7]
[358184404,1744822249855,-234.33713,0.000433,120]
[358184405,1744822249865,-239.84119403,0.00043449,2]
[358184406,1744822249875,-1717.9464,0.00043488,30]
[358184407,1744822249885,-190.88293,0.00043488,7]
[358184408,1744822249895,-500.0,0.00043632,120]
[358184409,1744822249905,-1717.9464,0.00043688,30]
[358184410,1744822249915,-190.88293,0.00043688,7]
[358184411,1744822249924,-868.85072056,0.000437,120]
[358184412,1744822249934,-510.77708366,0.00043732,120]
[358184413,1744822249946,-210.48769656,0.000438,120]
[358184414,1744822249955,-529.1,0.00043835,120]
[358184415,1744822249965,-190.88293,0.00043888,7]
[358184416,1744822249975,-2825.0,0.00044,2]
[358184417,1744822249984,-2000.0,0.00044,8]
[358184418,1744822249994,-1385.84138107,0.00044,10]
[358184419,1744822250003,-290.32269349,0.00044,120]
[358184420,1744822250013,-3153.50530728,0.00044,120]
[358184421,1744822250023,-400.94241533,0.00044,120]
[358184422,1744822250034,-2967.66903954,0.00044024,16]
[358184423,1744822250044,-484.06,0.00044084,30]
[358184424,1744822250053,-1717.9464,0.00044088,30]
[358184425,1744822250063,-1659.26,0.000441,2]
[358184426,1744822250072,-327.66,0.000441,36]
[358184427,1744822250082,-327.66,0.000441,36]
[358184428,1744822250091,-327.66,0.000441,36]
[358184429,1744822250100,-327.66,0.000441,36]
[358184430,1744822250110,-327.66,0.000441,36]
[358184431,1744822250120,-327.66,0.000441,36]
[358184432,1744822250129,-327.66,0.000441,36]
[358184433,1744822250139,-327.66,0.000441,36]
[358184434,1744822250149,-327.66,0.000441,36]
[358184435,1744822250158,-327.66,0.000441,36]
[358184436,1744822250168,-327.66,0.000441,36]
[358184437,1744822250178,-327.66,0.000441,36]
[358184438,1744822250187,-327.66,0.000441,36]
[358184439,1744822250196,-327.66,0.000441,36]
[358184440,1744822250206,-327.66,0.000441,36]
[358184441,1744822250216,-327.66,0.000441,36]
[358184442,1744822250226,-327.66,0.000441,36]
[358184443,1744822250236,-327.66,0.000441,36]
[358184444,1744822250246,-327.66,0.000441,36]
[358184445,1744822250256,-327.66,0.000441,36]
[358184446,1744822250265,-327.66,0.000441,36]
[358184447,1744822250275,-327.66,0.000441,36]
[358184448,1744822250284,-327.66,0.000441,36]
[358184449,1744822250293,-327.66,0.000441,36]
[358184450,1744822250303,-1168.62,0.0004412,30]
[358184451,1744822250313,-160.79,0.00044276,30]
[358184452,1744822250322,-1717.9464,0.00044288,30]
[358184453,1744822250332,-2402.6,0.00044351,30]
[358184454,1744822250341,-457.5556366,0.0004439,120]
[358184455,1744822250351,-150.0,0.00044442,30]
[358184456,1744822250363,-2406.62,0.00044465,30]
[358184457,1744822250372,-1717.9464,0.00044488,30]
[358184458,1744822250381,-351.8,0.00044496,2]
[358184459,1744822250391,-234.33713,0.000445,120]
[358184460,1744822250400,-2106.31,0.00044532,30]
[358184461,1744822250409,-325.71,0.00044565,30]
[358184462,1744822250419,-1717.9464,0.00044688,30]
[358184463,1744822250429,-1000.0,0.000447,2]
[358184464,1744822250439,-362.39,0.00044705,30]
[358184465,1744822250449,-389.05,0.00044773,30]
[358184466,1744822250459,-1047.27,0.00044781,30]
[358184467,1744822250470,-374.64765797,0.000448,120]
[358184468,1744822250479,-248.71531821,0.00044818,2]
[358184469,1744822250489,-1717.9464,0.00044888,30]
[358184470,1744822250499,-2817.59272989,0.000449,30]
[358184471,1744822250508,-1183.0,0.0004497,120]
[358184472,1744822250517,-333.0,0.0004497,120]
[358184473,1744822250527,-1183.0,0.0004498,120]
[358184474,1744822250536,-333.0,0.0004498,120]
[358184475,1744822250546,-1183.0,0.0004498,120]
[358184476,1744822250555,-333.0,0.0004498,120]
[358184477,1744822250564,-1183.0,0.0004499,120]
[358184478,1744822250574,-333.0,0.0004499,120]
[358184479,1744822250583,-1183.0,0.0004499,120]
[358184480,1744822250593,-333.0,0.0004499,120]
[358184481,1744822250602,-277.57486394,0.00044998,30]
[358184482,1744822250611,-151.0,0.00045,120]
[358184483,1744822250621,-1031.89374871,0.00045,120]
[358184484,1744822250630,-235.77352252,0.00045,32]
[358184485,1744822250640,-507.43635859,0.00045,120]
[358184486,1744822250650,-2414.58494464,0.00045,120]
[358184487,1744822250659,-2115.47916511,0.00045,60]
[358184488,1744822250669,-3213.20365491,0.00045,120]
[358184489,1744822250679,-1153.60862067,0.00045,120]
[358184490,1744822250689,-285.44004322,0.00045,120]
[358184491,1744822250699,-2000.0,0.00045,120]
[358184492,1744822250708,-1752.0,0.00045,120]
[358184493,1744822250719,-665.05215541,0.00045,100]
[358184494,1744822250731,-11202.32668191,0.00045,5]
[358184495,1744822250741,-497.06940814,0.00045021,30]
[358184496,1744822250751,-206.6,0.00045022,30]
[358184497,1744822250761,-2000.0,0.00045022,120]
[358184498,1744822250771,-4725.23356938,0.00045022,60]
[358184499,1744822250780,-3152.0,0.00045022,120]
[358184500,1744822250790,-1000.0,0.00045022,30]
[358184501,1744822250800,-1000.0,0.00045022,30]
[358184502,1744822250809,-1000.0,0.00045022,30]
[358184503,1744822250819,-653.58498103,0.00045022,120]
[358184504,1744822250831,-448.0,0.00045022,120]
[358184505,1744822250841,-2284.59160899,0.00045022,120]
[358184506,1744822250852,-1000.0,0.00045022,30]
[358184507,1744822250864,-1000.0,0.00045022,30]
[358184508,1744822250874,-1000.0,0.00045022,30]
[358184509,1744822250883,-1000.0,0.00045022,30]
[358184510,1744822250894,-1000.0,0.00045022,30]
[358184511,1744822250903,-1000.0,0.00045022,30]
[358184512,1744822250912,-1000.0,0.00045022,30]
[358184513,1744822250922,-280.66365452,0.00045022,30]
[358184514,1744822250934,-1000.0,0.00045022,30]
[358184515,1744822250944,-1000.0,0.00045022,30]
[358184516,1744822250954,-1000.0,0.00045022,30]
[358184517,1744822250964,-237.97572806,0.00045022,30]
[358184518,1744822250974,-1000.0,0.00045022,30]
[358184519,1744822250983,-724.31786006,0.00045022,30]
[358184520,1744822250993,-1000.0,0.00045022,30]
[358184521,1744822251002,-1000.0,0.00045022,30]
[358184522,1744822251011,-1000.0,0.00045022,60]
[358184523,1744822251022,-1000.0,0.00045022,30]
[358184524,1744822251031,-1000.0,0.00045022,30]
[358184525,1744822251042,-1000.0,0.00045022,30]
[358184526,1744822251051,-1000.0,0.00045022,60]
[358184527,1744822251061,-1000.0,0.00045022,30]
[358184528,1744822251072,-1000.0,0.00045022,60]
[358184529,1744822251081,-1000.0,0.00045022,30]
[358184530,1744822251090,-773.0,0.00045022,30]
[358184531,1744822251100,-1000.0,0.00045022,60]
[358184532,1744822251109,-1000.0,0.00045022,30]
[358184533,1744822251118,-1000.0,0.00045022,30]
[358184534,1744822251127,-1000.0,0.00045022,60]
[358184535,1744822251137,-1000.0,0.00045022,30]
[358184536,1744822251147,-1000.0,0.00045022,60]
[358184537,1744822251156,-1000.0,0.00045022,60]
[358184538,1744822251167,-1000.0,0.00045022,30]
[358184539,1744822251176,-1000.0,0.00045022,30]
[358184540,1744822251186,-1000.0,0.00045022,30]
[358184541,1744822251195,-1000.0,0.00045022,30]
[358184542,1744822251205,-1000.0,0.00045022,30]
[358184543,1744822251215,-1000.0,0.00045022,30]
[358184544,1744822251224,-1000.0,0.00045022,30]
[358184545,1744822251234,-1000.0,0.00045022,30]
[358184546,1744822251244,-1462.60426453,0.00045022,60]
[358184547,1744822251254,-1000.0,0.00045022,60]
[358184548,1744822251263,-1000.0,0.00045022,30]
[358184549,1744822251272,-1000.0,0.00045022,60]
[358184550,1744822251282,-307.3,0.00045022,30]
[358184551,1744822251291,-850.86987037,0.00045022,90]
[358184552,1744822251301,-3195.34597997,0.00045022,30]
[358184553,1744822251310,-390.10743188,0.00045022,2]
[358184554,1744822251320,-201552.22461332,0.00045022,2]
[358184555,1744822251329,-195.34383283,0.00045022,120]
[358184556,1744822251339,-512.61559598,0.00045022,30]
[358184557,1744822251348,-1999.99999,0.00045022,120]
[358184558,1744822251358,-383.11628576,0.00045022,30]
[358184559,1744822251368,-121879.53152235,0.00045022,2]
[358184560,1744822251378,-2279.3479192,0.00045022,120]
[358184561,1744822251387,-2243.00035783,0.00045022,30]
[358184562,1744822251396,-1243.10793478,0.00045022,91]
[358184563,1744822251406,-718.44725044,0.00045022,30]
[358184564,1744822251415,-878.8402226,0.00045022,30]
[358184565,1744822251425,-1000.0,0.00045022,30]
[358184566,1744822251434,-2386.75335231,0.00045022,30]
[358184567,1744822251443,-2786.20007002,0.00045022,30]
[358184568,1744822251452,-1210.0,0.00045022,2]
[358184569,1744822251461,-2218.67197463,0.00045022,120]
[358184570,1744822251471,-2569.52411979,0.00045022,120]
[358184571,1744822251480,-702.57299367,0.00045022,2]
[358184572,1744822251488,-3962.5832673,0.00045022,120]
[358184573,1744822251497,-2011.09042692,0.00045022,30]
[358184574,1744822251506,-361.79139304,0.00045022,2]
[358184575,1744822251515,-741.61249791,0.00045022,30]
[358184576,1744822251524,-6070.36550218,0.00045022,120]
[358184577,1744822251532,-3819.43887642,0.00045022,30]
[358184578,1744822251541,-4888.34518434,0.00045022,30]
[358184579,1744822251550,-347.94286471,0.00045022,2]
[358184580,1744822251559,-4171.76183318,0.00045022,30]
[358184581,1744822251568,-500.0,0.00045022,30]
[358184582,1744822251576,-760.85447103,0.00045022,2]
[358184583,1744822251585,-468.71832608,0.00045022,120]
[358184584,1744822251595,-2500.0,0.00045022,30]
[358184585,1744822251603,-1323.62387863,0.00045022,120]
[358184586,1744822251612,-22627.38649306,0.00045022,2]
[358184587,1744822251621,-1519.30952934,0.00045022,2]
[358184588,1744822251630,-1236.4397818,0.00045022,120]
[358184589,1744822251639,-1028.4995656,0.00045022,2]
[358184590,1744822251648,-256.55725241,0.00045022,30]
[358184591,1744822251658,-5179.46238052,0.00045022,2]
[358184592,1744822251667,-1638.52726701,0.00045022,120]
[358184593,1744822251676,-175.46978513,0.00045022,120]
[358184594,1744822251685,-1806.63614086,0.00045022,120]
[358184595,1744822251737,-382.69486625,0.00045022,120]
[358184596,1744822251746,-2453.00041204,0.00045022,2]
[358184597,1744822251755,-860.83236232,0.00045022,30]
[358184598,1744822251764,-4042.66860359,0.00045022,2]
[358184599,1744822251774,-80818.78843029,0.00045022,2]
[358184600,1744822251783,-2488.65442984,0.00045022,120]
[358184601,1744822251793,-2702.34190344,0.00045022,2]
[358184602,1744822251802,-215343.49143439,0.00045022,2]
[358184603,1744822251811,-3000.0,0.00045022,30]
[358184604,1744822251820,-151.15253786,0.00045022,2]
[358184605,1744822251829,-2839.22509957,0.00045022,30]
[358184606,1744822251838,-43889.31183605,0.00045022,2]
[358184607,1744822251847,-869.06564281,0.00045022,30]
[358184608,1744822251859,-248.87735833,0.00045022,2]
[358184609,1744822251868,-164.2511782,0.00045022,2]
[358184610,1744822251877,-210.92704029,0.00045022,120]
[358184611,1744822251886,-1260.42647096,0.00045022,2]
[358184612,1744822251896,-936.1060388,0.00045022,30]
[358184613,1744822251907,-828.3552439,0.00045022,120]
[358184614,1744822251916,-888.30074993,0.00045022,60]
[358184615,1744822251925,-7712.38653592,0.00045022,2]
[358184616,1744822251937,-738.74103379,0.00045022,30]
[358184617,1744822251947,-209.51995366,0.00045022,30]
[358184618,1744822251956,-967.08118587,0.00045022,30]
[358184619,1744822251965,-2384.4046871,0.00045022,120]
[358184620,1744822251974,-209.33808804,0.00045022,120]
[358184621,1744822251983,-25012.43566665,0.00045022,2]
[358184622,1744822251992,-626.94111161,0.00045022,120]
[358184623,1744822252001,-1040.38526747,0.00045022,2]
[358184624,1744822252010,-212.30754793,0.00045022,30]
[358184625,1744822252020,-1926.51613135,0.00045022,120]
[358184626,1744822252029,-31949.64168855,0.00045022,2]
[358184627,1744822252038,-1018.12194645,0.00045022,30]
[358184628,1744822252048,-594.18693667,0.00045022,2]
[358184629,1744822252062,-1646.89925519,0.00045022,120]
[358184630,1744822252072,-3545.84252502,0.00045022,2]
[358184631,1744822252081,-353.46493378,0.00045022,30]
[358184632,1744822252090,-513.37744386,0.00045022,60]
[358184633,1744822252100,-9224.55660905,0.00045022,2]
[358184634,1744822252110,-1310.2720349,0.00045022,2]
[358184635,1744822252119,-3415.39389142,0.00045022,2]
[358184636,1744822252128,-76911.7614996,0.00045022,2]
[358184637,1744822252137,-707.27096728,0.00045022,120]
[358184638,1744822252147,-452.01651729,0.00045022,30]
[358184639,1744822252159,-207.42386805,0.00045022,30]
[358184640,1744822252168,-22764.18298894,0.00045022,2]
[358184641,1744822252178,-12818.55544402,0.00045022,2]
[358184642,1744822252188,-1918.20432953,0.00045022,2]
[358184643,1744822252198,-183.87698154,0.00045022,2]
[358184644,1744822252207,-5014.30557592,0.00045022,2]
[358184645,1744822252216,-407.68421451,0.00045022,120]
[358184646,1744822252225,-643.0,0.00045022,2]
[358184647,1744822252234,-969.29869053,0.00045022,2]
[358184648,1744822252243,-8621.25060928,0.00045022,2]
[358184649,1744822252252,-2369.46294089,0.00045022,120]
[358184650,1744822252260,-1616.58254227,0.00045022,120]
[358184651,1744822252269,-25321.97726396,0.00045022,2]
[358184652,1744822252278,-572.63063532,0.00045022,2]
[358184653,1744822252287,-560.2648779,0.00045022,30]
[358184654,1744822252296,-1834.40851454,0.00045022,2]
[358184655,1744822252305,-3239.00134414,0.00045022,2]
[358184656,1744822252315,-154.32433774,0.00045022,2]
[358184657,1744822252324,-175.26250604,0.00045022,2]
[358184658,1744822252333,-1421.76610038,0.00045022,120]
[358184659,1744822252342,-7076.92916682,0.00045022,2]
[358184660,1744822252351,-550.0,0.00045022,2]
[358184661,1744822252361,-1465.35111673,0.00045022,2]
[358184662,1744822252371,-1007.39459517,0.00045022,2]
[358184663,1744822252381,-1017.96258745,0.00045022,30]
[358184664,1744822252391,-802.58410682,0.00045022,2]
[358184665,1744822252400,-10691.62173424,0.00045022,2]
[358184666,1744822252410,-169621.99316146,0.00045022,2]
[358184667,1744822252419,-14937.66009164,0.00045022,2]
[358184668,1744822252429,-835.01272215,0.00045022,120]
[358184669,1744822252439,-228.82571938,0.00045022,2]